bitfinex/quotes_SOLUSD_20240604
["timestamp","ask_amount","ask_price","bid_price","bid_amount"]
[1717508716422,0.03752584,166.4,166.37,2.2239]
[1717508716589,0.03752584,166.4,166.38,2.2238]
[1717508716794,0.03752584,166.4,166.38,8.2551]
[1717508716993,0.03752584,166.4,166.38,6.0313]
[1717508717219,0.03752584,166.4,166.37,36.11]
[1717508718223,0.03752584,166.4,166.36,2.224]
[1717508718515,0.03752584,166.4,166.36,42.3206]
[1717508718821,6.98752584,166.4,166.36,6.2106]
[1717508719216,0.03752584,166.4,166.36,8.4346]
[1717508719419,0.03752584,166.4,166.36,6.2106]
[1717508719420,6.98752584,166.4,166.36,6.2106]
[1717508720901,6.98752584,166.4,166.36,8.4346]
[1717508721207,0.03752584,166.4,166.36,2.224]
[1717508721408,6.98752584,166.4,166.36,2.224]
[1717508721620,6.95,166.39,166.35,2.2241]
[1717508721922,6.95,166.38,166.34,38.3343]
[1717508723827,6.95,166.38,166.35,2.2242]
[1717508724627,6.95,166.36,166.33,2.2244]
[1717508724837,6.95,166.36,166.32,2.2246]
[1717508725200,6.95,166.36,166.33,2.2244]
[1717508725706,6.95,166.38,166.34,2.2243]
[1717508726030,6.95,166.39,166.35,2.2241]
[1717508726206,6.95,166.39,166.34,2.2243]
[1717508726406,6.95,166.37,166.34,2.2243]
[1717508726612,2.26102584,166.4,166.34,2.2243]
[1717508726613,6.95,166.38,166.34,2.2243]
[1717508727123,6.95,166.38,166.35,2.2242]
[1717508727432,6.95,166.39,166.35,2.2242]
[1717508729237,0.03752584,166.4,166.35,2.2242]
[1717508729448,0.03752584,166.4,166.34,61.28]
[1717508730209,0.03752584,166.4,166.37,2.2239]
[1717508731502,0.03752584,166.4,166.38,2.2238]
[1717508731703,0.03752584,166.4,166.39,2.2236]
[1717508731932,0.03752584,166.4,166.37,42.7201]
[1717508732111,0.03752584,166.4,166.39,2.2236]
[1717508732917,0.03752584,166.4,166.35,75.4246]
[1717508733113,0.03752584,166.4,166.37,2.2238]
[1717508733330,6.98752584,166.4,166.36,44.5657]
[1717508733514,6.98752584,166.4,166.36,38.504]
[1717508734131,6.98752584,166.4,166.35,38.3341]
[1717508734315,6.95,166.39,166.35,38.3341]
[1717508734521,0.03752584,166.4,166.36,2.224]
[1717508734821,6.98752584,166.4,166.36,2.224]
[1717508735026,0.03752584,166.4,166.35,38.3341]
[1717508735227,6.95,166.38,166.35,2.2241]
[1717508735530,6.95,166.38,166.36,2.224]
[1717508735719,6.95,166.39,166.36,2.224]
[1717508736122,6.95,166.39,166.35,2.2242]
[1717508737631,6.98752584,166.4,166.36,2.224]
[1717508738131,0.03752584,166.4,166.38,2.2237]
[1717508738507,0.03752584,166.4,166.37,2.2239]
[1717508738908,0.03752584,166.4,166.38,2.2238]
[1717508739560,0.03752584,166.4,166.38,38.3338]
[1717508740415,0.03752584,166.4,166.36,0.17]
[1717508740629,0.03752584,166.4,166.37,2.3938]
[1717508742245,0.03752584,166.4,166.38,2.2237]
[1717508743935,0.03752584,166.4,166.39,0.17]
[1717508744245,0.03752584,166.4,166.39,2.2236]
[1717508744752,0.03752584,166.4,166.39,2.5636]
[1717508744925,0.03752584,166.4,166.39,38.6736]
[1717508745841,0.03752584,166.4,166.39,56.7236]
[1717508746048,0.03752584,166.4,166.39,63.6736]
[1717508746241,0.03752584,166.4,166.39,69.7834]
[1717508748357,0.03752584,166.4,166.39,62.8334]
[1717508748559,0.03752584,166.4,166.39,69.7834]
[1717508749338,0.03752584,166.4,166.39,74.2307]
[1717508749540,0.03752584,166.4,166.39,106.2545]
[1717508750961,9.2285,166.5,166.39,106.2545]
[1717508750962,0.499,166.5,166.43,54.16]
[1717508751134,0.499,166.5,166.47,2.2225]
[1717508752241,0.499,166.5,166.47,2.2226]
[1717508753461,0.499,166.5,166.46,2.3927]
[1717508754551,0.499,166.5,166.47,2.2226]
[1717508754930,0.499,166.5,166.46,2.3927]
[1717508755949,0.499,166.5,166.44,2.2229]
[1717508756149,2.7213,166.5,166.44,2.2229]
[1717508756347,6.95,166.48,166.44,2.2229]
[1717508756551,6.95,166.48,166.43,38.3331]
[1717508756753,6.95,166.48,166.43,36.11]
[1717508756955,6.95,166.49,166.43,36.11]
[1717508757159,6.95,166.49,166.45,2.2228]
[1717508759543,0.499,166.5,166.45,2.2228]
[1717508759544,7.449,166.5,166.45,2.2228]
[1717508759738,7.449,166.5,166.45,2.2227]
[1717508759939,7.449,166.5,166.46,2.2227]
[1717508760142,0.499,166.5,166.46,2.2227]
[1717508760348,0.499,166.5,166.45,45.4528]
[1717508760565,0.499,166.5,166.46,0.17]
[1717508760741,7.449,166.5,166.46,0.17]
[1717508761144,7.449,166.5,166.45,38.3328]
[1717508761361,7.449,166.5,166.46,2.2227]
[1717508761566,0.499,166.5,166.46,2.2227]
[1717508761747,7.449,166.5,166.46,2.2227]
[1717508761942,2.2223,166.49,166.44,2.563]
[1717508762147,6.95,166.49,166.44,2.2229]
[1717508762449,9.6712,166.5,166.44,2.2229]
[1717508762650,0.499,166.5,166.47,2.2225]
[1717508762879,0.499,166.5,166.46,2.2226]
[1717508763259,7.449,166.5,166.46,2.2226]
[1717508763692,0.499,166.5,166.47,2.2226]
[1717508764351,7.449,166.5,166.45,36.21]
[1717508764552,6.95,166.48,166.42,36.04]
[1717508764782,6.95,166.49,166.43,6.95]
[1717508764987,6.95,166.49,166.44,2.223]
[1717508765348,9.1723,166.49,166.44,2.2229]
[1717508765689,6.95,166.49,166.44,2.2229]
[1717508766049,2.7212,166.5,166.45,2.2228]
[1717508766371,7.449,166.5,166.45,2.2228]
[1717508766573,0.499,166.5,166.46,2.2227]
[1717508766982,9.6712,166.5,166.45,2.2228]
[1717508767272,2.7212,166.5,166.45,2.2228]
[1717508767476,7.449,166.5,166.45,2.2228]
[1717508767774,0.499,166.5,166.45,2.2228]
[1717508768074,7.449,166.5,166.45,2.2228]
[1717508768288,0.499,166.5,166.44,36.21]
[1717508768463,7.449,166.5,166.45,2.5628]
[1717508768856,7.449,166.5,166.46,2.2227]
[1717508769275,7.449,166.5,166.45,2.5628]
[1717508769984,0.499,166.5,166.46,2.2227]
[1717508770155,7.449,166.5,166.46,2.2227]
[1717508770476,0.499,166.5,166.46,2.2227]
[1717508771490,0.499,166.5,166.47,2.2226]
[1717508772184,0.499,166.5,166.46,38.2627]
[1717508772481,0.499,166.5,166.48,2.2224]
[1717508772693,0.499,166.5,166.47,0.34]
[1717508774291,0.499,166.5,166.48,2.2224]
[1717508775659,0.499,166.5,166.47,0.34]
[1717508775855,0.499,166.5,166.47,2.2226]
[1717508776392,0.499,166.5,166.48,2.2224]
[1717508777581,0.499,166.5,166.46,38.2626]
[1717508777763,0.499,166.5,166.47,2.5626]
[1717508778283,0.499,166.5,166.47,2.2226]
[1717508780180,6.95,166.49,166.44,38.2629]
[1717508780379,2.7213,166.5,166.45,2.2228]
[1717508780584,7.449,166.5,166.45,2.2228]
[1717508780981,9.6712,166.5,166.44,38.2629]
[1717508781286,7.449,166.5,166.45,2.2228]
[1717508781672,7.449,166.5,166.46,2.2227]
[1717508782188,0.499,166.5,166.46,2.2227]
[1717508782597,0.499,166.5,166.47,2.2226]
[1717508783390,0.499,166.5,166.48,2.2224]
[1717508783768,0.499,166.5,166.47,38.2625]
[1717508784089,0.499,166.5,166.49,2.2223]
[1717508784395,0.499,166.5,166.48,2.2224]
[1717508785391,0.499,166.5,166.47,45.5525]
[1717508785689,0.499,166.5,166.48,0.34]
[1717508787795,0.499,166.5,166.47,38.2625]
[1717508787972,0.499,166.5,166.47,36.04]
[1717508788486,0.499,166.5,166.47,38.2626]
[1717508789107,0.499,166.5,166.46,2.2227]
[1717508789389,0.499,166.5,166.47,2.2225]
[1717508790593,0.499,166.5,166.48,2.2224]
[1717508790771,0.499,166.5,166.46,42.99]
[1717508790975,0.499,166.5,166.48,2.2224]
[1717508792889,0.499,166.5,166.49,2.2223]
[1717508793095,0.499,166.5,166.48,2.2224]
[1717508794474,0.499,166.5,166.49,2.2223]
[1717508794787,0.499,166.5,166.49,2.3923]
[1717508795394,0.499,166.5,166.49,0.17]
[1717508796991,0.499,166.5,166.49,38.6023]
[1717508797374,0.499,166.5,166.49,36.38]
[1717508798296,0.499,166.5,166.49,0.34]
[1717508798997,0.499,166.5,166.49,45.5523]
[1717508799575,0.499,166.5,166.49,38.6023]
[1717508800388,0.499,166.5,166.49,45.5523]
[1717508800680,0.499,166.5,166.49,38.6023]
[1717508802891,0.499,166.5,166.49,45.5523]
[1717508807504,0.499,166.5,166.49,38.6023]
[1717508808183,0.499,166.5,166.49,45.5523]
[1717508809101,0.499,166.5,166.49,38.6023]
[1717508809292,0.499,166.5,166.49,45.5523]
[1717508812091,0.499,166.5,166.49,38.6023]
[1717508812399,0.499,166.5,166.49,45.5523]
[1717508812603,7.1725356,166.57,166.52,2.2218]
[1717508812992,1.1656356,166.57,166.54,2.2215]
[1717508813197,1.1656356,166.57,166.53,38.4317]
[1717508813383,1.1656356,166.57,166.54,2.2216]
[1717508813582,1.1656356,166.57,166.53,38.4318]
[1717508813785,1.1656356,166.57,166.53,38.2618]
[1717508814007,1.1656356,166.57,166.53,2.2218]
[1717508814194,1.1656356,166.57,166.52,2.2218]
[1717508814391,1.1656356,166.57,166.53,2.2217]
[1717508817131,1.1656356,166.57,166.54,2.2216]
[1717508817908,6.5664,166.56,166.49,36.04]
[1717508818118,15.7378,166.56,166.51,2.2219]
[1717508818313,8.7878,166.56,166.51,2.2219]
[1717508818693,2.2214,166.56,166.51,9.1719]
[1717508818892,10.3369356,166.57,166.52,2.2219]
[1717508819400,3.3869356,166.57,166.52,9.1719]
[1717508820313,2.2214,166.56,166.51,2.222]
[1717508820513,3.3869356,166.57,166.52,2.2219]
[1717508824643,2.2215,166.55,166.5,2.2221]
[1717508825126,2.2216,166.54,166.5,2.2221]
[1717508825338,9.1716,166.55,166.5,2.2221]
[1717508825627,2.2216,166.55,166.5,2.2221]
[1717508826000,9.1719,166.53,166.48,36.04]
[1717508826197,6.95,166.52,166.45,42.99]
[1717508826396,6.95,166.51,166.45,36.04]
[1717508826617,9.1721,166.51,166.46,2.2226]
[1717508826816,9.1721,166.51,166.45,38.2628]
[1717508827026,2.2222,166.5,166.45,38.2628]
[1717508827211,2.2219,166.52,166.46,2.2226]
[1717508827401,2.2221,166.51,166.45,38.2628]
[1717508827598,6.0023,166.53,166.45,42.99]
[1717508827803,31.0095,166.56,166.48,6.95]
[1717508827804,15.4589,166.56,166.48,6.95]
[1717508828027,9.1716,166.55,166.49,2.2222]
[1717508828223,2.2216,166.55,166.49,9.1722]
[1717508828432,2.2217,166.54,166.49,6.95]
[1717508828925,6.95,166.55,166.49,6.95]
[1717508829232,7.6930356,166.57,166.51,2.222]
[1717508829233,9.1714,166.56,166.51,2.222]
[1717508829403,2.2214,166.56,166.51,2.222]
[1717508830529,2.2214,166.56,166.5,45.2121]
[1717508830909,2.2214,166.56,166.51,2.222]
[1717508831121,2.2214,166.56,166.5,45.2121]
[1717508831727,10.3369356,166.57,166.51,2.562]
[1717508831926,10.3369356,166.57,166.51,45.552]
[1717508832120,8.1156356,166.57,166.51,36.38]
[1717508832425,8.1156356,166.57,166.51,36.04]
[1717508832854,6.95,166.56,166.5,6.95]
[1717508833138,9.1716,166.55,166.49,2.2223]
[1717508834649,2.2216,166.54,166.49,2.2223]
[1717508834817,9.1716,166.55,166.49,2.2223]
[1717508835634,2.2216,166.55,166.5,2.2221]
[1717508835837,3.3869356,166.57,166.51,2.222]
[1717508836031,2.2214,166.56,166.51,2.222]
[1717508836225,2.2214,166.56,166.5,45.2121]
[1717508836619,2.2214,166.56,166.51,2.222]
[1717508836812,10.3369356,166.57,166.51,2.222]
[1717508837012,2.2214,166.56,166.51,2.222]
[1717508837323,2.2214,166.56,166.5,45.2121]
[1717508837636,2.2214,166.56,166.5,2.2221]
[1717508837821,9.1714,166.56,166.5,38.2621]
[1717508838134,2.2215,166.55,166.49,9.3423]
[1717508838337,6.95,166.55,166.49,2.2223]
[1717508839735,6.95,166.54,166.49,2.2223]
[1717508839928,9.1716,166.55,166.49,2.2223]
[1717508840326,9.1716,166.55,166.5,2.2222]
[1717508840945,6.3227,166.54,166.5,2.2222]
[1717508841316,9.1716,166.55,166.5,2.2222]
[1717508843147,9.1716,166.55,166.49,2.2223]
[1717508843644,6.95,166.53,166.47,2.2225]
[1717508843819,10.4844,166.56,166.45,6.95]
[1717508843820,6.95,166.52,166.45,6.95]
[1717508844221,9.172,166.52,166.47,2.2226]
[1717508844421,9.172,166.52,166.46,2.2226]
[1717508844736,9.172,166.52,166.47,2.2226]
[1717508845127,15.6007,166.52,166.46,2.2227]
[1717508847236,2.2221,166.51,166.46,2.2227]
[1717508847443,15.1958,166.51,166.46,2.2227]
[1717508847750,2.2222,166.5,166.45,2.2228]
[1717508848061,15.1958,166.51,166.45,2.2228]
[1717508848445,2.2222,166.5,166.45,2.2228]
[1717508848631,2.2223,166.49,166.44,2.2229]
[1717508848839,9.1723,166.49,166.44,2.2229]
[1717508849218,6.95,166.48,166.4,36.04]
[1717508849450,13.1024,166.48,166.44,2.223]
[1717508849948,15.3248,166.48,166.43,2.2231]
[1717508850120,15.3249,166.48,166.43,2.223]
[1717508850545,13.1024,166.48,166.44,2.2229]
[1717508850751,9.1723,166.49,166.44,2.2229]
[1717508850953,2.2225,166.48,166.43,2.2231]
[1717508852354,9.1725,166.48,166.43,2.2231]
[1717508852733,9.1724,166.49,166.44,2.2229]
[1717508853045,6.95,166.5,166.43,2.223]
[1717508853230,11.0827,166.52,166.41,40.4868]
[1717508853231,6.95,166.49,166.42,9.1732]
[1717508853442,6.95,166.49,166.43,2.2231]
[1717508853758,2.2225,166.48,166.43,9.1731]
[1717508854361,2.2223,166.49,166.45,6.95]
[1717508854570,2.2222,166.5,166.44,9.173]
[1717508854945,2.2223,166.49,166.44,9.173]
[1717508855151,2.2223,166.49,166.43,45.3831]
[1717508855357,2.2223,166.49,166.44,0.17]
[1717508855973,2.2224,166.48,166.43,2.2231]
[1717508856343,2.2224,166.48,166.43,9.1731]
[1717508858474,2.2224,166.48,166.42,2.3932]
[1717508858644,2.2224,166.48,166.42,9.1732]
[1717508859170,2.2226,166.47,166.42,9.1732]
[1717508859850,2.2226,166.47,166.43,6.95]
[1717508860046,6.95,166.49,166.43,6.95]
[1717508860260,2.2225,166.48,166.43,9.1731]
[1717508860569,2.2227,166.46,166.41,2.2233]
[1717508860865,13.1683,166.47,166.4,6.95]
[1717508860866,2.2226,166.47,166.42,9.1732]
[1717508861069,2.2226,166.47,166.42,2.2232]
[1717508862067,2.2226,166.47,166.41,6.95]
[1717508862068,2.223,166.44,166.41,6.95]
[1717508862241,6.95,166.47,166.39,2.2236]
[1717508862242,9.173,166.45,166.39,2.2236]
[1717508862441,2.223,166.44,166.39,2.2236]
[1717508862643,9.1729,166.45,166.4,2.2235]
[1717508862877,2.223,166.44,166.39,2.2236]
[1717508863242,2.223,166.44,166.4,2.2235]
[1717508863490,2.2234,166.42,166.37,38.2638]
[1717508863774,6.95,166.43,166.39,2.2236]
[1717508864077,9.1731,166.43,166.38,2.2237]
[1717508864440,9.173,166.44,166.38,2.2237]
[1717508864660,9.173,166.44,166.36,36.04]
[1717508864865,9.173,166.44,166.38,9.1737]
[1717508865069,2.2229,166.45,166.39,9.1736]
[1717508865363,2.2229,166.45,166.39,2.2236]
[1717508865364,9.1729,166.45,166.39,2.2236]
[1717508865750,2.223,166.44,166.39,2.2236]
[1717508866068,2.2231,166.43,166.38,9.1737]
[1717508866270,15.6299,166.43,166.38,2.2237]
[1717508866576,8.6799,166.43,166.38,2.2237]
[1717508866746,2.223,166.45,166.39,2.2236]
[1717508867070,9.173,166.44,166.39,2.2236]
[1717508867441,2.223,166.44,166.39,2.2236]
[1717508867645,9.173,166.44,166.39,2.2236]
[1717508867849,9.1732,166.43,166.37,2.2238]
[1717508868042,10.9022,166.47,166.36,2.224]
[1717508868043,9.1733,166.42,166.36,2.224]
[1717508869278,6.1324,166.44,166.35,9.1741]
[1717508869279,9.1734,166.41,166.35,9.1741]
[1717508869650,9.1734,166.41,166.36,2.224]
[1717508870679,2.2233,166.42,166.37,2.2239]
[1717508870882,9.1733,166.42,166.37,2.2239]
[1717508871084,2.2233,166.42,166.37,2.2239]
[1717508871279,2.2233,166.42,166.37,9.1739]
[1717508871476,2.2232,166.43,166.38,9.1737]
[1717508871681,2.223,166.44,166.39,6.95]
[1717508871998,9.173,166.44,166.39,2.2236]
[1717508872282,9.173,166.44,166.38,9.1737]
[1717508872488,2.223,166.44,166.39,2.2236]
[1717508873159,2.2231,166.43,166.38,9.1737]
[1717508874179,2.2234,166.41,166.36,2.224]
[1717508874369,15.3743,166.41,166.36,2.224]
[1717508874759,2.2235,166.4,166.35,2.2242]
[1717508875067,2.2235,166.4,166.35,9.1742]
[1717508875272,2.2235,166.4,166.35,2.2242]
[1717508875580,15.3743,166.41,166.35,2.2242]
[1717508876181,15.3743,166.41,166.36,2.224]
[1717508876994,15.3743,166.41,166.35,2.2241]
[1717508878265,8.4243,166.41,166.36,2.224]
[1717508878481,15.3743,166.41,166.36,2.224]
[1717508878677,8.4243,166.41,166.36,2.224]
[1717508878876,15.3743,166.41,166.36,2.224]
[1717508881302,8.6954,166.43,166.38,2.2238]
[1717508881809,15.6454,166.43,166.38,2.2238]
[1717508882012,2.2233,166.42,166.37,2.2239]
[1717508882304,2.2234,166.41,166.36,9.174]
[1717508882667,9.1734,166.41,166.36,2.224]
[1717508883587,2.2236,166.4,166.35,2.2241]
[1717508883773,15.1782,166.4,166.35,2.2241]
[1717508884595,8.2282,166.4,166.35,2.2241]
[1717508884794,15.1782,166.4,166.35,2.2241]
[1717508884996,8.2282,166.4,166.36,2.224]
[1717508885795,8.2282,166.4,166.35,2.2241]
[1717508886295,15.1782,166.4,166.35,2.2241]
[1717508886501,2.2237,166.39,166.34,2.2243]
[1717508886873,2.2237,166.39,166.35,2.2242]
[1717508887084,15.1782,166.4,166.35,2.2242]
[1717508887481,2.2236,166.39,166.35,2.2242]
[1717508887894,9.1736,166.39,166.34,2.2243]
[1717508888115,6.95,166.37,166.3,42.99]
[1717508888400,2.2241,166.36,166.31,2.2247]
[1717508888775,15.5253,166.37,166.32,2.2246]
[1717508889176,8.5754,166.37,166.32,2.2245]
[1717508889388,2.2238,166.38,166.33,2.2243]
[1717508889702,15.4638,166.42,166.36,6.95]
[1717508889902,13.2405,166.42,166.36,6.95]
[1717508890070,2.2234,166.41,166.36,2.2239]
[1717508890493,15.4638,166.42,166.36,2.2239]
[1717508890681,2.2235,166.4,166.35,9.1741]
[1717508890886,2.2234,166.41,166.35,9.1741]
[1717508891397,2.2235,166.4,166.35,9.1741]
[1717508891593,2.2234,166.41,166.36,2.224]
[1717508892103,2.2234,166.41,166.35,9.1741]
[1717508893192,2.2235,166.4,166.35,9.1741]
[1717508893984,2.2235,166.4,166.35,2.2241]
[1717508894383,6.2905,166.42,166.34,2.2242]
[1717508894384,9.1736,166.39,166.34,2.2242]
[1717508894600,9.1736,166.39,166.33,2.2244]
[1717508894899,9.1736,166.39,166.32,42.99]
[1717508895274,9.1736,166.39,166.34,2.2243]
[1717508895692,9.1736,166.39,166.32,42.99]
[1717508896205,9.1736,166.39,166.34,2.2243]
[1717508896701,6.95,166.38,166.33,2.2244]
[1717508897085,6.95,166.38,166.34,2.2243]
[1717508897777,6.95,166.37,166.33,2.2244]
[1717508898375,6.95,166.37,166.32,2.2245]
[1717508898806,13.2537,166.37,166.32,2.2245]
[1717508898997,13.2537,166.37,166.33,2.2244]
[1717508899195,13.2537,166.37,166.29,49.3895]
[1717508899196,6.3037,166.37,166.3,2.2248]
[1717508899493,6.95,166.35,166.31,2.2247]
[1717508899803,6.95,166.35,166.3,2.2248]
[1717508900194,6.95,166.35,166.31,2.2247]
[1717508902006,6.95,166.35,166.29,6.95]
[1717508902007,13.2581,166.35,166.29,2.2249]
[1717508902222,6.95,166.34,166.29,2.2249]
[1717508902384,15.4825,166.34,166.29,2.2249]
[1717508902701,6.95,166.33,166.3,2.2248]
[1717508903484,13.2581,166.34,166.3,2.2248]
[1717508904721,15.4824,166.34,166.29,2.2249]
[1717508905025,13.2581,166.34,166.29,2.2249]
[1717508905193,6.3081,166.34,166.29,2.2249]
[1717508905399,13.2581,166.34,166.3,2.2248]
[1717508906538,13.2581,166.34,166.31,2.2247]
[1717508906844,13.2581,166.34,166.3,2.2248]
[1717508907030,13.2581,166.34,166.29,2.2249]
[1717508907238,6.95,166.33,166.29,2.2249]
[1717508908019,6.95,166.33,166.3,2.2248]
[1717508908637,13.2581,166.34,166.3,2.2248]
[1717508911014,2.2241,166.36,166.31,2.2247]
[1717508911215,10.6666,166.42,166.33,6.95]
[1717508911441,9.1737,166.39,166.34,2.2242]
[1717508911942,2.2237,166.39,166.34,9.1742]
[1717508912144,8.4433,166.42,166.36,6.95]
[1717508912317,13.17,166.42,166.36,6.95]
[1717508913236,15.3933,166.42,166.36,9.174]
[1717508913945,15.3933,166.42,166.36,2.224]
[1717508914245,15.3933,166.42,166.36,9.174]
[1717508914426,15.3933,166.42,166.37,2.2239]
[1717508915448,6.95,166.39,166.35,2.2242]
[1717508916028,6.95,166.39,166.36,2.224]
[1717508916238,6.95,166.39,166.35,2.2241]
[1717508916433,6.95,166.4,166.34,2.2243]
[1717508916630,9.1737,166.39,166.33,9.1744]
[1717508916829,6.95,166.38,166.33,2.2244]
[1717508917344,15.5045,166.39,166.33,2.2244]
[1717508917523,6.95,166.38,166.31,6.95]
[1717508917722,6.95,166.38,166.34,2.2242]
[1717508917927,6.3308,166.39,166.3,36.04]
[1717508917928,6.95,166.39,166.35,2.2242]
[1717508918526,9.1735,166.4,166.35,2.2242]
[1717508919143,9.1737,166.39,166.33,2.2244]
[1717508919324,2.2238,166.38,166.33,9.1744]
[1717508919524,9.1738,166.38,166.33,2.2244]
[1717508920045,9.1738,166.38,166.33,1.87886184]
[1717508920244,6.95,166.38,166.33,1.87886184]
[1717508920433,6.95,166.37,166.33,1.87886184]
[1717508920756,6.95,166.35,166.29,7.45269724]
[1717508921042,9.1741,166.36,166.3,2.2248]
[1717508921254,2.2242,166.35,166.3,2.2248]
[1717508921421,15.6096,166.36,166.31,2.2247]
[1717508921833,15.6096,166.36,166.3,2.2248]
[1717508922240,2.2242,166.35,166.3,2.2248]
[1717508922722,6.6129,166.35,166.3,2.2248]
[1717508923221,13.5629,166.35,166.31,2.2247]
[1717508925050,9.1744,166.34,166.29,2.2249]
[1717508925755,15.6147,166.33,166.28,2.2251]
[1717508925925,6.95,166.32,166.28,2.2251]
[1717508926118,6.95,166.32,166.26,6.95]
[1717508926325,6.95,166.31,166.27,2.2251]
[1717508926519,6.95,166.31,166.25,6.95]
[1717508926520,6.95,166.31,166.28,2.2251]
[1717508926739,6.95,166.32,166.28,2.2251]
[1717508927131,6.95,166.32,166.29,2.225]
[1717508927349,6.95,166.32,166.28,2.225]
[1717508927654,13.3902,166.33,166.28,2.225]
[1717508927851,13.3902,166.33,166.29,2.225]
[1717508929445,13.3902,166.33,166.23,13.2512]
[1717508929446,6.95,166.31,166.23,4.4515]
[1717508929770,6.95,166.3,166.26,2.2254]
[1717508929960,6.95,166.3,166.27,2.2252]
[1717508930164,6.95,166.3,166.26,2.2253]
[1717508930859,9.1749,166.3,166.26,2.2253]
[1717508931250,6.95,166.3,166.26,2.2253]
[1717508935546,9.1748,166.3,166.26,2.2253]
[1717508936176,6.95,166.3,166.26,2.2253]
[1717508936483,9.1749,166.3,166.26,2.2253]
[1717508936650,15.7527,166.3,166.26,2.2253]
[1717508937743,13.5278,166.3,166.26,2.2253]
[1717508938561,2.2246,166.32,166.27,2.2252]
[1717508938765,6.95,166.32,166.28,2.2251]
[1717508939449,9.1746,166.32,166.27,47.2252]
[1717508939873,2.2247,166.31,166.27,45.0]
[1717508940171,6.95,166.3,166.27,45.0]
[1717508940368,6.95,166.3,166.26,2.2253]
[1717508940974,9.1749,166.3,166.26,2.2253]
[1717508941360,6.95,166.29,166.26,2.2253]
[1717508941752,2.2246,166.32,166.27,2.2252]
[1717508941954,6.95,166.31,166.27,2.2252]
[1717508942169,9.1747,166.31,166.27,2.2252]
[1717508942477,6.95,166.3,166.26,2.2253]
[1717508943380,6.95,166.29,166.25,45.0]
[1717508943674,6.95,166.29,166.25,2.2255]
[1717508945042,6.95,166.29,166.22,4.4518]
[1717508945247,6.95,166.26,166.22,2.2259]
[1717508945449,6.95,166.26,166.23,2.2257]
[1717508945676,6.1193,166.29,166.2,20.19089997]
[1717508945677,2.2253,166.27,166.2,20.19089997]
[1717508945994,9.1754,166.26,166.21,2.226]
[1717508946275,6.95,166.26,166.21,2.226]
[1717508947075,15.5309,166.26,166.21,2.226]
[1717508947381,6.95,166.24,166.21,47.226]
[1717508947576,6.95,166.25,166.21,47.226]
[1717508949375,6.6631,166.24,166.2,8.78849997]
[1717508949681,6.95,166.23,166.2,8.78849997]
[1717508950059,6.95,166.21,166.2,8.78849997]
[1717508950271,6.95,166.22,166.2,8.78849997]
[1717508950679,6.95,166.23,166.2,8.78849997]
[1717508950867,15.8388,166.24,166.2,8.78849997]
[1717508951580,6.95,166.23,166.2,8.78849997]
[1717508952678,6.95,166.22,166.2,8.78849997]
[1717508952863,9.176,166.21,166.2,8.78849997]